[Event "22nd ETCC Women 2019"]
[Site "Batumi"]
[Date "2019.10.30"]
[Round "6.22"]
[White "Puuska, Heini"]
[Black "Vanduyfhuys, Daria"]
[Result "0-1"]
[ECO "D05"]
[WhiteElo "1992"]
[BlackElo "1983"]
[Annotator "NA"]
[PlyCount "84"]
[EventDate "2019.10.24"]
[EventType "team-tourn"]
[EventCountry "GEO"]
[SourceTitle "playchess.com"]
[Source "ChessBase"]
[SourceQuality "1"]
[WhiteTeam "Finland"]
[BlackTeam "Belgium"]
[WhiteTeamCountry "FIN"]
[BlackTeamCountry "BEL"]
[TimeControl "40/5400+30:1800+30"]

1. d4 {[%emt 0:00:00]} Nf6 {[%emt 0:00:00]} 2. Nf3 {[%emt 0:00:00]} e6 {[%emt 0:00:00]} 3. e3 {[%emt 0:00:26]} d5 {[%emt 0:01:11]} 4. Bd3 {[%emt 0:00:51]} c5 {[%emt 0:00:47]} 5. b3 {[%emt 0:00:49]} Nc6 {[%emt 0:00:55]} 6. Bb2 {[%emt 0:01:03]} cxd4 {[%emt 0:02:26]} 7. exd4 {[%emt 0:01:38]} Bb4+ {[%emt 0:00:35]} 8. c3 {[%emt 0:05:16]} Bd6 {[%emt 0:00:13]} 9. Nbd2 {[%emt 0:01:23]} O-O {[%emt 0:00:43]} 10. O-O {[%emt 0:00:41]} b6 {[%emt 0:08:48]} 11. Re1 {[%emt 0:03:49]} Bb7 {[%emt 0:03:37]} 12. Rc1 {[%emt 0:06:39]} Rc8 {[%emt 0:00:39]} 13. Ne5 {[%emt 0:02:18]} Re8 {[%emt 0:05:13]} 14. Re3 {[%emt 0:06:40]} g6 {[%emt 0:10:32]} 15. Ndf3 {[%emt 0:16:51]} Ne4 {[%emt 0:19:50]} 16. c4 {[%emt 0:12:19]} Nb4 {[%emt 0:05:35]} 17. Bb1 {[%emt 0:01:49]} Bf8 {[%emt 0:06:02]} 18. a3 {[%emt 0:06:51]} Nc6 {[%emt 0:02:52]} 19. Bxe4 {[%emt 0:02:13]} dxe4 {[%emt 0:00:08]} 20. Rxe4 {[%emt 0:00:27]} Bh6 {[%emt 0:02:22]} 21. Rc2 {[%emt 0:04:45]} Nb4 {[%emt 0:03:16]} 22. Rh4 {[%emt 0:06:45]} Nxc2 {[%emt 0:01:06]} 23. Rxh6 {[%emt 0:00:21]} f6 {[%emt 0:09:19]} 24. Ng4 {[%emt 0:08:04]} Be4 {[%emt 0:01:13]} 25. d5 {[%emt 0:03:42]} e5 {[%emt 0:01:06]} 26. h4 {[%emt 0:02:14]} Kg7 {[%emt 0:04:49]} 27. Qd2 {[%emt 0:02:02]} b5 {[%emt 0:06:48]} 28. Ngxe5 {[%emt 0:02:56]} bxc4 {[%emt 0:02:57]} 29. bxc4 {[%emt 0:00:53]} Rb8 {[%emt 0:00:39]} 30. Bc3 {[%emt 0:00:19]} Rb1+ {[%emt 0:00:06]} 31. Kh2 {[%emt 0:00:12]} Qd6 {[%emt 0:00:49]} 32. c5 {[%emt 0:00:54]} Qxc5 {[%emt 0:00:49]} 33. Ng4 {[%emt 0:00:15]} Qd6+ {[%emt 0:00:26]} 34. Nfe5 {[%emt 0:00:55]} fxe5 {[%emt 0:00:31]} 35. f3 {[%emt 0:00:36]} Bf5 {[%emt 0:00:31]} 36. h5 {[%emt 0:00:32]} Bxg4 {[%emt 0:00:30]} 37. fxg4 {[%emt 0:00:12]} Nd4 {[%emt 0:00:18]} 38. hxg6 {[%emt 0:00:24]} hxg6 {[%emt 0:00:06]} 39. Rh3 {[%emt 0:00:47]} Rh8 {[%emt 0:00:47]} 40. Rxh8 {[%emt 0:00:00]} Kxh8 {[%emt 0:00:00]} 41. Qh6+ {[%emt 0:02:36]} Kg8 {[%emt 0:00:11]} 42. Qg5 {[%emt 0:00:40]} e4+ {[%emt 0:00:32]} 0-1

[Event "22nd ETCC Women 2019"]
[Site "Batumi"]
[Date "2019.10.30"]
[Round "6.23"]
[White "Berzina, Ilze"]
[Black "Danielian, Elina"]
[Result "0-1"]
[ECO "B07"]
[WhiteElo "2216"]
[BlackElo "2385"]
[Annotator "NA"]
[PlyCount "70"]
[EventDate "2019.10.24"]
[EventType "team-tourn"]
[EventCountry "GEO"]
[SourceTitle "playchess.com"]
[Source "ChessBase"]
[SourceQuality "1"]
[WhiteTeam "Latvia"]
[BlackTeam "Armenia"]
[WhiteTeamCountry "LAT"]
[BlackTeamCountry "ARM"]
[TimeControl "40/5400+30:1800+30"]

1. e4 {[%emt 0:00:00]} d6 {[%emt 0:00:00]} 2. d4 {[%emt 0:00:00]} Nf6 {[%emt 0:00:00]} 3. Nc3 {[%emt 0:00:07]} g6 {[%emt 0:00:00]} 4. Be3 {[%emt 0:02:02]} c6 {[%emt 0:00:00]} 5. Qd2 {[%emt 0:03:58]} Nbd7 {[%emt 0:01:08]} 6. Nf3 {[%emt 0:02:58]} Ng4 {[%emt 0:16:10]} 7. Bf4 {[%emt 0:10:26]} e5 {[%emt 0:01:34]} 8. h3 {[%emt 0:16:11]} exf4 {[%emt 0:12:58]} 9. hxg4 {[%emt 0:00:10]} g5 {[%emt 0:07:50]} 10. e5 {[%emt 0:05:17]} d5 {[%emt 0:03:38]} 11. Qd3 {[%emt 0:15:04]} Nb6 {[%emt 0:10:33]} 12. Rxh7 {[%emt 0:00:47]} Rg8 {[%emt 0:00:49]} 13. Nh2 {[%emt 0:14:31]} Be6 {[%emt 0:00:10]} 14. g3 {[%emt 0:01:07]} Nc4 {[%emt 0:01:03]} 15. gxf4 {[%emt 0:08:30]} Nxb2 {[%emt 0:10:50]} 16. Qd2 {[%emt 0:00:14]} Bb4 {[%emt 0:03:16]} 17. Rb1 {[%emt 0:02:07]} Qa5 {[%emt 0:02:16]} 18. Rh3 {[%emt 0:00:07]} Na4 {[%emt 0:05:27]} 19. Rxb4 {[%emt 0:00:11]} Qxb4 {[%emt 0:00:03]} 20. Nxa4 {[%emt 0:00:15]} Qxa4 {[%emt 0:00:39]} 21. f5 {[%emt 0:00:13]} Bd7 {[%emt 0:01:49]} 22. Rh7 {[%emt 0:12:03]} Qxa2 {[%emt 0:06:35]} 23. e6 {[%emt 0:02:07]} Qb1+ {[%emt 0:00:51]} 24. Ke2 {[%emt 0:00:05]} fxe6 {[%emt 0:01:54]} 25. f6 {[%emt 0:02:28]} O-O-O {[%emt 0:00:26]} 26. f7 {[%emt 0:00:22]} Rgf8 {[%emt 0:00:28]} 27. Nf3 {[%emt 0:00:14]} c5 {[%emt 0:02:41]} 28. Bg2 {[%emt 0:00:13]} cxd4 {[%emt 0:02:50]} 29. Ne5 {[%emt 0:00:47]} Bb5+ {[%emt 0:00:50]} 30. Kf3 {[%emt 0:00:06]} Qb2 {[%emt 0:02:13]} 31. Ng6 {[%emt 0:00:58]} Qa3+ {[%emt 0:00:29]} 32. c3 {[%emt 0:00:06]} Qxc3+ {[%emt 0:00:15]} 33. Qxc3+ {[%emt 0:00:05]} dxc3 {[%emt 0:00:02]} 34. Nxf8 {[%emt 0:00:24]} Rxf8 {[%emt 0:00:17]} 35. Ke3 {[%emt 0:00:22]} Kd7 {[%emt 0:00:35]} 0-1

[Event "22nd ETCC Women 2019"]
[Site "Batumi"]
[Date "2019.10.30"]
[Round "6.23"]
[White "Barbier, Astrid"]
[Black "Norlamo, Sarabella"]
[Result "1/2-1/2"]
[ECO "C55"]
[WhiteElo "1974"]
[BlackElo "2020"]
[Annotator "NA"]
[PlyCount "55"]
[EventDate "2019.10.24"]
[EventType "team-tourn"]
[EventCountry "GEO"]
[SourceTitle "playchess.com"]
[Source "ChessBase"]
[SourceQuality "1"]
[WhiteTeam "Belgium"]
[BlackTeam "Finland"]
[WhiteTeamCountry "BEL"]
[BlackTeamCountry "FIN"]
[TimeControl "40/5400+30:1800+30"]

1. e4 {[%emt 0:00:00]} e5 {[%emt 0:00:00]} 2. Nf3 {[%emt 0:00:00]} Nc6 {[%emt 0:00:00]} 3. d4 {[%emt 0:00:00]} exd4 {[%emt 0:00:00]} 4. Bc4 {[%emt 0:00:00]} Nf6 {[%emt 0:09:54]} 5. e5 {[%emt 0:01:00]} d5 {[%emt 0:00:23]} 6. Bb5 {[%emt 0:00:18]} Ne4 {[%emt 0:00:39]} 7. Nxd4 {[%emt 0:01:17]} Bd7 {[%emt 0:00:39]} 8. Bxc6 {[%emt 0:01:19]} bxc6 {[%emt 0:01:47]} 9. O-O {[%emt 0:01:13]} Be7 {[%emt 0:02:04]} 10. f3 {[%emt 0:03:57]} Nc5 {[%emt 0:04:34]} 11. f4 {[%emt 0:03:42]} O-O {[%emt 0:12:42]} 12. Be3 {[%emt 0:18:09]} f6 {[%emt 0:04:37]} 13. Nd2 {[%emt 0:07:38]} fxe5 {[%emt 0:02:55]} 14. fxe5 {[%emt 0:00:26]} Ne6 {[%emt 0:03:09]} 15. N2b3 {[%emt 0:10:57]} Ng5 {[%emt 0:12:34]} 16. Qe2 {[%emt 0:06:47]} Ne4 {[%emt 0:05:54]} 17. Rxf8+ {[%emt 0:07:49]} Bxf8 {[%emt 0:01:52]} 18. Rf1 {[%emt 0:04:47]} Qe8 {[%emt 0:08:03]} 19. Qf3 {[%emt 0:06:28]} a5 {[%emt 0:05:20]} 20. Nc1 {[%emt 0:08:56]} Qg6 {[%emt 0:04:28]} 21. e6 {[%emt 0:07:42]} Bxe6 {[%emt 0:01:07]} 22. Nxc6 {[%emt 0:00:18]} Bd6 {[%emt 0:05:15]} 23. Bf4 {[%emt 0:03:11]} Bc5+ {[%emt 0:01:59]} 24. Be3 {[%emt 0:01:05]} Bd6 {[%emt 0:02:05]} 25. Bf4 {[%emt 0:00:43]} Bc5+ {[%emt 0:00:32]} 26. Be3 {[%emt 0:01:01]} Bd6 {[%emt 0:00:06]} 27. Bf4 {[%emt 0:01:33]} Bc5+ {[%emt 0:00:32]} 28. Be3 {[%emt 0:00:13]} 1/2-1/2

[Event "22nd ETCC Women 2019"]
[Site "Batumi"]
[Date "2019.10.30"]
[Round "6.24"]
[White "Gevorgyan, Maria"]
[Black "Golsta, Madara"]
[Result "1-0"]
[ECO "B23"]
[WhiteElo "2260"]
[BlackElo "1987"]
[Annotator "NA"]
[PlyCount "67"]
[EventDate "2019.10.24"]
[EventType "team-tourn"]
[EventCountry "GEO"]
[SourceTitle "playchess.com"]
[Source "ChessBase"]
[SourceQuality "1"]
[WhiteTeam "Armenia"]
[BlackTeam "Latvia"]
[WhiteTeamCountry "ARM"]
[BlackTeamCountry "LAT"]
[TimeControl "40/5400+30:1800+30"]

1. e4 {[%emt 0:00:00]} c5 {[%emt 0:00:00]} 2. Nc3 {[%emt 0:00:00]} d6 {[%emt 0:00:10]} 3. f4 {[%emt 0:00:04]} g6 {[%emt 0:00:20]} 4. Nf3 {[%emt 0:00:11]} Bg7 {[%emt 0:00:28]} 5. Bc4 {[%emt 0:00:13]} Nc6 {[%emt 0:01:14]} 6. O-O {[%emt 0:00:12]} e6 {[%emt 0:01:07]} 7. d4 {[%emt 0:00:59]} cxd4 {[%emt 0:08:20]} 8. Nb5 {[%emt 0:00:18]} Nge7 {[%emt 0:02:39]} 9. Bb3 O-O 10. Nbxd4 {[%emt 0:01:20]} b6 {[%emt 0:16:23]} 11. f5 {[%emt 0:14:55]} Nxd4 {[%emt 0:17:20]} 12. Nxd4 {[%emt 0:00:16]} exf5 {[%emt 0:00:38]} 13. Bg5 {[%emt 0:04:38]} Qe8 {[%emt 0:10:33]} 14. Re1 {[%emt 0:16:37]} Qd7 {[%emt 0:08:32]} 15. Bxe7 {[%emt 0:07:53]} Qxe7 {[%emt 0:01:15]} 16. exf5 {[%emt 0:04:55]} Qg5 {[%emt 0:08:15]} 17. Bd5 {[%emt 0:07:29]} Rb8 {[%emt 0:03:12]} 18. Nc6 {[%emt 0:00:14]} Bxf5 {[%emt 0:04:19]} 19. Nxb8 {[%emt 0:00:07]} Rxb8 {[%emt 0:00:05]} 20. Bxf7+ {[%emt 0:00:09]} Kh8 {[%emt 0:01:29]} 21. Qxd6 {[%emt 0:00:17]} Rf8 {[%emt 0:00:22]} 22. c3 {[%emt 0:03:58]} Bh3 {[%emt 0:03:40]} 23. Qd5 {[%emt 0:01:41]} Qxg2+ {[%emt 0:05:27]} 24. Qxg2 {[%emt 0:00:04]} Bxg2 {[%emt 0:00:09]} 25. Kxg2 {[%emt 0:00:07]} Rxf7 {[%emt 0:00:05]} 26. Re8+ {[%emt 0:00:05]} Bf8 {[%emt 0:00:34]} 27. Rf1 {[%emt 0:00:25]} Kg7 {[%emt 0:00:35]} 28. Rxf7+ {[%emt 0:00:46]} Kxf7 {[%emt 0:00:06]} 29. Rb8 {[%emt 0:00:04]} Be7 {[%emt 0:02:52]} 30. Rb7 {[%emt 0:00:09]} h5 {[%emt 0:00:38]} 31. Rxa7 {[%emt 0:00:07]} Kf6 {[%emt 0:00:15]} 32. b4 {[%emt 0:01:54]} g5 {[%emt 0:01:14]} 33. a4 {[%emt 0:02:58]} g4 {[%emt 0:00:30]} 34. Ra6 {[%emt 0:00:25]} 1-0

[Event "22nd ETCC Women 2019"]
[Site "Batumi"]
[Date "2019.10.30"]
[Round "6.24"]
[White "Lehtinen, Helja"]
[Black "Mabille, Natacha"]
[Result "1-0"]
[ECO "D12"]
[WhiteElo "1802"]
[BlackElo "1939"]
[Annotator "NA"]
[PlyCount "119"]
[EventDate "2019.10.24"]
[EventType "team-tourn"]
[EventCountry "GEO"]
[SourceTitle "playchess.com"]
[Source "ChessBase"]
[SourceQuality "1"]
[WhiteTeam "Finland"]
[BlackTeam "Belgium"]
[WhiteTeamCountry "FIN"]
[BlackTeamCountry "BEL"]
[TimeControl "40/5400+30:1800+30"]

1. d4 {[%emt 0:00:00]} d5 {[%emt 0:00:00]} 2. c4 {[%emt 0:00:00]} c6 {[%emt 0:00:00]} 3. Nf3 {[%emt 0:00:00]} Nf6 {[%emt 0:00:23]} 4. e3 {[%emt 0:00:00]} Bf5 {[%emt 0:01:20]} 5. b3 {[%emt 0:08:00]} e6 {[%emt 0:00:42]} 6. Bb2 {[%emt 0:00:31]} Bb4+ {[%emt 0:01:05]} 7. Nbd2 {[%emt 0:01:17]} Nbd7 {[%emt 0:07:51]} 8. Be2 {[%emt 0:06:06]} dxc4 {[%emt 0:03:50]} 9. bxc4 {[%emt 0:06:06]} Ne4 {[%emt 0:11:50]} 10. O-O {[%emt 0:03:22]} Qc7 {[%emt 0:08:26]} 11. Nxe4 {[%emt 0:05:33]} Bxe4 {[%emt 0:00:12]} 12. Bd3 {[%emt 0:01:04]} Bxd3 {[%emt 0:05:53]} 13. Qxd3 {[%emt 0:00:09]} Be7 {[%emt 0:02:20]} 14. a4 {[%emt 0:14:27]} O-O {[%emt 0:03:51]} 15. Rab1 {[%emt 0:03:39]} c5 {[%emt 0:11:38]} 16. Ba3 {[%emt 0:11:51]} Rfd8 {[%emt 0:03:20]} 17. Rfc1 {[%emt 0:06:44]} Bf6 {[%emt 0:05:58]} 18. Qb3 {[%emt 0:03:07]} b6 {[%emt 0:02:22]} 19. Bb2 {[%emt 0:01:25]} Rac8 {[%emt 0:02:14]} 20. Ra1 {[%emt 0:01:55]} cxd4 {[%emt 0:04:17]} 21. exd4 {[%emt 0:00:20]} e5 {[%emt 0:00:26]} 22. dxe5 {[%emt 0:03:13]} Nxe5 {[%emt 0:00:14]} 23. Nxe5 {[%emt 0:00:05]} Bxe5 {[%emt 0:00:06]} 24. Bxe5 {[%emt 0:00:07]} Qxe5 {[%emt 0:00:03]} 25. Qc3 {[%emt 0:05:54]} Qc5 {[%emt 0:02:44]} 26. Ra2 {[%emt 0:05:08]} h6 {[%emt 0:02:05]} 27. h3 {[%emt 0:01:00]} Rd4 {[%emt 0:00:40]} 28. Rac2 {[%emt 0:01:03]} Rcd8 {[%emt 0:01:03]} 29. Re1 {[%emt 0:03:38]} Rd3 {[%emt 0:04:35]} 30. Qb2 {[%emt 0:01:31]} R8d4 {[%emt 0:02:06]} 31. Qb5 {[%emt 0:01:13]} Rd1 {[%emt 0:02:47]} 32. Rce2 {[%emt 0:04:58]} Rxe1+ {[%emt 0:02:29]} 33. Rxe1 {[%emt 0:00:05]} Qxb5 34. axb5 {[%emt 0:00:11]} Rxc4 {[%emt 0:00:12]} 35. Re8+ {[%emt 0:00:34]} Kh7 {[%emt 0:00:06]} 36. Re7 {[%emt 0:00:04]} Rc1+ {[%emt 0:01:21]} 37. Kh2 {[%emt 0:00:05]} Ra1 {[%emt 0:00:07]} 38. Rxf7 {[%emt 0:00:23]} Ra5 {[%emt 0:00:21]} 39. Rb7 {[%emt 0:01:01]} Rxb5 {[%emt 0:02:23]} 40. Rxa7 {[%emt 0:00:00]} Rb3 {[%emt 0:00:00]} 41. Rb7 {[%emt 0:01:11]} Kg6 {[%emt 0:01:52]} 42. f3 {[%emt 0:02:31]} Kf6 {[%emt 0:01:13]} 43. Rc7 {[%emt 0:01:30]} b5 {[%emt 0:01:32]} 44. Rc6+ {[%emt 0:00:43]} Kf5 {[%emt 0:01:44]} 45. Kg3 {[%emt 0:01:36]} b4 {[%emt 0:01:07]} 46. Rc5+ {[%emt 0:00:36]} Ke6 {[%emt 0:00:19]} 47. Rc6+ {[%emt 0:00:29]} Kd5 {[%emt 0:12:34]} 48. Rg6 {[%emt 0:03:59]} Rc3 {[%emt 0:01:04]} 49. Rxg7 {[%emt 0:00:13]} Rc5 {[%emt 0:01:47]} 50. Rh7 {[%emt 0:06:21]} Rc6 {[%emt 0:00:13]} 51. Rb7 {[%emt 0:04:18]} Kc4 {[%emt 0:00:37]} 52. f4 {[%emt 0:01:55]} b3 {[%emt 0:02:57]} 53. f5 Kc3 {[%emt 0:01:41]} 54. Kf4 {[%emt 0:05:06]} Rc4+ {[%emt 0:05:43]} 55. Ke5 {[%emt 0:00:43]} Rb4 {[%emt 0:00:41]} 56. Rxb4 {[%emt 0:00:30]} Kxb4 {[%emt 0:00:14]} 57. f6 {[%emt 0:00:08]} b2 {[%emt 0:00:17]} 58. f7 {[%emt 0:00:06]} b1=Q {[%emt 0:00:09]} 59. f8=Q+ {[%emt 0:00:10]} Kc4 {[%emt 0:00:18]} 60. Qc8+ {[%emt 0:00:53]} 1-0

[Event "22nd ETCC Women 2019"]
[Site "Batumi"]
[Date "2019.10.30"]
[Round "6.25"]
[White "Milliet, Sophie"]
[Black "Shvayger, Yuliya"]
[Result "1/2-1/2"]
[ECO "B33"]
[WhiteElo "2400"]
[BlackElo "2336"]
[Annotator "NA"]
[PlyCount "66"]
[EventDate "2019.10.24"]
[EventType "team-tourn"]
[EventCountry "GEO"]
[SourceTitle "playchess.com"]
[Source "ChessBase"]
[SourceQuality "1"]
[WhiteTeam "France"]
[BlackTeam "Israel"]
[WhiteTeamCountry "FRA"]
[BlackTeamCountry "ISR"]
[TimeControl "40/5400+30:1800+30"]

1. e4 {[%emt 0:00:00]} c5 {[%emt 0:00:00]} 2. Nf3 {[%emt 0:00:00]} Nc6 {[%emt 0:00:00]} 3. d4 {[%emt 0:00:00]} cxd4 {[%emt 0:00:14]} 4. Nxd4 {[%emt 0:00:00]} Nf6 {[%emt 0:00:20]} 5. Nc3 {[%emt 0:00:00]} e6 {[%emt 0:00:16]} 6. Nxc6 {[%emt 0:03:29]} bxc6 {[%emt 0:00:09]} 7. e5 {[%emt 0:00:07]} Nd5 {[%emt 0:00:10]} 8. Ne4 {[%emt 0:00:19]} Qc7 {[%emt 0:00:43]} 9. f4 {[%emt 0:00:04]} Qb6 {[%emt 0:00:05]} 10. c4 {[%emt 0:00:20]} Bb4+ {[%emt 0:00:31]} 11. Ke2 {[%emt 0:00:11]} f5 {[%emt 0:00:39]} 12. Nf2 {[%emt 0:08:30]} Ba6 {[%emt 0:02:26]} 13. Kf3 {[%emt 0:00:32]} Ne7 {[%emt 0:00:02]} 14. Be3 {[%emt 0:03:59]} Bc5 {[%emt 0:00:11]} 15. Bxc5 {[%emt 0:01:17]} Qxc5 {[%emt 0:00:02]} 16. Qd6 {[%emt 0:03:23]} Qxd6 {[%emt 0:00:07]} 17. exd6 {[%emt 0:00:04]} Ng8 {[%emt 0:00:07]} 18. b3 {[%emt 0:18:28]} c5 {[%emt 0:08:18]} 19. Ke3 {[%emt 0:05:46]} Nf6 {[%emt 0:01:06]} 20. Be2 {[%emt 0:00:48]} Bb7 {[%emt 0:01:05]} 21. Nd3 {[%emt 0:06:50]} Rc8 {[%emt 0:00:37]} 22. Ne5 {[%emt 0:00:28]} O-O {[%emt 0:06:43]} 23. Rhg1 {[%emt 0:00:49]} Rfd8 {[%emt 0:03:42]} 24. Rad1 {[%emt 0:03:03]} a5 {[%emt 0:00:26]} 25. Rd3 {[%emt 0:03:39]} Be4 {[%emt 0:00:21]} 26. Rd2 {[%emt 0:00:13]} Ra8 {[%emt 0:04:09]} 27. h3 {[%emt 0:09:36]} a4 {[%emt 0:00:52]} 28. Bd1 {[%emt 0:10:15]} axb3 {[%emt 0:01:47]} 29. Bxb3 {[%emt 0:00:03]} Ra6 {[%emt 0:00:07]} 30. g4 {[%emt 0:00:23]} Ba8 {[%emt 0:04:08]} 31. Rd3 {[%emt 0:05:28]} Be4 {[%emt 0:00:53]} 32. Rd2 {[%emt 0:00:12]} Ba8 {[%emt 0:00:07]} 33. Rd3 {[%emt 0:04:07]} Be4 {[%emt 0:06:43] Kxe4} 1/2-1/2

[Event "22nd ETCC Women 2019"]
[Site "Batumi"]
[Date "2019.10.30"]
[Round "6.25"]
[White "Georgescu, Lena"]
[Black "Stojkovska, Monika"]
[Result "1-0"]
[ECO "C18"]
[WhiteElo "2271"]
[BlackElo "2108"]
[Annotator "NA"]
[PlyCount "45"]
[EventDate "2019.10.24"]
[EventType "team-tourn"]
[EventCountry "GEO"]
[SourceTitle "playchess.com"]
[Source "ChessBase"]
[SourceQuality "1"]
[WhiteTeam "Switzerland"]
[BlackTeam "Macedonia"]
[WhiteTeamCountry "SUI"]
[BlackTeamCountry "MKD"]
[TimeControl "40/5400+30:1800+30"]

1. e4 {[%emt 0:00:00]} e6 {[%emt 0:00:00]} 2. d4 {[%emt 0:00:00]} d5 {[%emt 0:00:00]} 3. Nc3 {[%emt 0:00:00]} Bb4 {[%emt 0:00:01]} 4. e5 {[%emt 0:00:00]} c5 {[%emt 0:00:06]} 5. a3 {[%emt 0:00:00]} Bxc3+ {[%emt 0:00:05]} 6. bxc3 {[%emt 0:00:00]} Ne7 {[%emt 0:00:42]} 7. Qg4 {[%emt 0:00:00]} O-O {[%emt 0:00:18]} 8. Bd3 {[%emt 0:00:52]} Qa5 {[%emt 0:00:35]} 9. Bd2 {[%emt 0:00:14]} Nbc6 {[%emt 0:00:04]} 10. Nf3 {[%emt 0:00:25]} f5 {[%emt 0:00:43]} 11. exf6 {[%emt 0:00:08]} Rxf6 {[%emt 0:00:06]} 12. Qh5 {[%emt 0:01:09]} Nf5 {[%emt 0:01:01]} 13. c4 {[%emt 0:01:26]} Qa4 {[%emt 0:00:30]} 14. g4 {[%emt 0:04:08]} dxc4 {[%emt 0:15:52]} 15. Be4 {[%emt 0:00:14]} Ncxd4 {[%emt 0:20:24]} 16. gxf5 {[%emt 0:01:31]} Nxc2+ {[%emt 0:05:45]} 17. Kf1 {[%emt 0:07:35]} c3 {[%emt 0:27:02]} 18. Bxc3 {[%emt 0:06:25]} Qxe4 {[%emt 0:16:25]} 19. Bxf6 {[%emt 0:01:21]} Qc4+ {[%emt 0:00:37]} 20. Kg2 {[%emt 0:00:52]} gxf6 {[%emt 0:00:48]} 21. Qe8+ {[%emt 0:01:19]} Kg7 {[%emt 0:00:01]} 22. Qe7+ {[%emt 0:01:12]} Kg8 {[%emt 0:00:09]} 23. Rhg1 {[%emt 0:02:11]} 1-0

[Event "22nd ETCC Women 2019"]
[Site "Batumi"]
[Date "2019.10.30"]
[Round "6.26"]
[White "Efroimski, Marsel"]
[Black "Guichard, Pauline"]
[Result "1/2-1/2"]
[ECO "C44"]
[WhiteElo "2317"]
[BlackElo "2407"]
[Annotator "NA"]
[PlyCount "139"]
[EventDate "2019.10.24"]
[EventType "team-tourn"]
[EventCountry "GEO"]
[SourceTitle "playchess.com"]
[Source "ChessBase"]
[SourceQuality "1"]
[WhiteTeam "Israel"]
[BlackTeam "France"]
[WhiteTeamCountry "ISR"]
[BlackTeamCountry "FRA"]
[TimeControl "40/5400+30:1800+30"]

1. e4 {[%emt 0:00:00]} e5 {[%emt 0:00:00]} 2. Nf3 {[%emt 0:00:00]} Nc6 {[%emt 0:00:00]} 3. d4 {[%emt 0:00:00]} exd4 {[%emt 0:00:00]} 4. Nxd4 {[%emt 0:00:00]} Nf6 {[%emt 0:00:18]} 5. Nxc6 {[%emt 0:00:09]} bxc6 {[%emt 0:00:26]} 6. Bd3 {[%emt 0:00:04]} d5 {[%emt 0:08:09]} 7. exd5 {[%emt 0:00:39]} cxd5 {[%emt 0:04:38]} 8. O-O {[%emt 0:00:05]} Be7 {[%emt 0:00:29]} 9. c4 {[%emt 0:00:06]} O-O {[%emt 0:09:04]} 10. cxd5 {[%emt 0:00:51]} Bb7 {[%emt 0:00:16]} 11. Nc3 {[%emt 0:21:15]} Nxd5 {[%emt 0:01:06]} 12. Bd2 {[%emt 0:13:41]} Rb8 {[%emt 0:04:26]} 13. Re1 {[%emt 0:13:46]} Bf6 {[%emt 0:12:59]} 14. Bc4 {[%emt 0:21:19]} Nb6 {[%emt 0:08:40]} 15. Bb3 {[%emt 0:01:04]} Qd4 {[%emt 0:07:06]} 16. Qe2 {[%emt 0:07:34]} Qh4 {[%emt 0:05:20]} 17. Qe3 {[%emt 0:03:47]} Nc4 {[%emt 0:03:13]} 18. Bxc4 {[%emt 0:02:14]} Qxc4 {[%emt 0:00:05]} 19. Qf4 {[%emt 0:00:41]} Qc6 {[%emt 0:03:35]} 20. Qg3 {[%emt 0:01:01]} Ba8 {[%emt 0:06:37]} 21. Rac1 {[%emt 0:01:06]} Qd7 {[%emt 0:02:04]} 22. Rcd1 {[%emt 0:02:59]} Qf5 {[%emt 0:01:41]} 23. Bc1 {[%emt 0:01:19]} Rb4 {[%emt 0:04:35]} 24. Qd3 {[%emt 0:01:17]} Qh5 {[%emt 0:03:06]} 25. Nd5 {[%emt 0:03:16]} Bxd5 {[%emt 0:04:33]} 26. Qxd5 {[%emt 0:00:02]} Qxd5 {[%emt 0:00:04]} 27. Rxd5 {[%emt 0:00:03]} Bxb2 {[%emt 0:00:08]} 28. Rc5 {[%emt 0:04:20]} Bxc1 {[%emt 0:03:51]} 29. Rexc1 {[%emt 0:00:09]} Rc8 {[%emt 0:00:13]} 30. g3 {[%emt 0:00:44]} Rb7 {[%emt 0:00:05]} 31. a4 {[%emt 0:00:30]} g6 {[%emt 0:01:20]} 32. Rc6 {[%emt 0:00:45]} h5 {[%emt 0:02:18]} 33. a5 {[%emt 0:00:43]} Rb5 {[%emt 0:02:27]} 34. Ra6 {[%emt 0:00:13]} c5 {[%emt 0:00:11]} 35. Rxa7 {[%emt 0:00:10]} c4 {[%emt 0:00:35]} 36. a6 {[%emt 0:00:39]} Ra5 {[%emt 0:02:06]} 37. Rc2 {[%emt 0:00:51]} c3 {[%emt 0:00:24]} 38. Kf1 {[%emt 0:00:34]} Kg7 {[%emt 0:01:13]} 39. h4 {[%emt 0:00:13]} Kf6 {[%emt 0:00:24]} 40. Ke2 {[%emt 0:00:00]} Ke6 {[%emt 0:00:00]} 41. Kd3 {[%emt 0:03:08]} Rd5+ {[%emt 0:08:30]} 42. Ke3 {[%emt 0:01:35]} Rd6 {[%emt 0:00:08]} 43. Ke2 {[%emt 0:02:08]} Kd5 {[%emt 0:15:30]} 44. Rxf7 {[%emt 0:05:15]} Kc4 {[%emt 0:00:31]} 45. a7 {[%emt 0:01:54]} Re6+ {[%emt 0:05:51]} 46. Kf1 {[%emt 0:02:35]} Ra6 {[%emt 0:01:02]} 47. Rc1 {[%emt 0:02:53]} Rc5 {[%emt 0:03:13]} 48. Rd7 {[%emt 0:03:24]} Ra2 {[%emt 0:00:37]} 49. Ke1 {[%emt 0:00:39]} Rc8 {[%emt 0:00:41]} 50. Rb7 {[%emt 0:03:37]} Rc6 {[%emt 0:00:22]} 51. Rd7 {[%emt 0:00:43]} Rc5 {[%emt 0:00:42]} 52. Kd1 {[%emt 0:01:27]} Kb5 {[%emt 0:00:34]} 53. Rc2 {[%emt 0:01:01]} Ra1+ {[%emt 0:00:30]} 54. Rc1 {[%emt 0:00:38]} Ra2 {[%emt 0:00:18]} 55. Rc2 {[%emt 0:01:04]} Ra6 {[%emt 0:00:20]} 56. Rc1 {[%emt 0:01:46]} Kc4 {[%emt 0:00:24]} 57. Ke1 {[%emt 0:00:39]} Rc8 {[%emt 0:00:57]} 58. Rb7 {[%emt 0:00:48]} Rc5 {[%emt 0:00:33]} 59. Rd7 {[%emt 0:00:39]} Ra3 {[%emt 0:00:26]} 60. Ke2 {[%emt 0:01:08]} Rc6 {[%emt 0:00:34]} 61. Ke1 {[%emt 0:00:41]} Rc8 {[%emt 0:00:29]} 62. Rb7 {[%emt 0:00:20]} Re8+ {[%emt 0:00:30]} 63. Kd1 {[%emt 0:00:31]} Rd8+ {[%emt 0:00:25]} 64. Ke1 {[%emt 0:00:40]} Re8+ {[%emt 0:00:27]} 65. Kf1 {[%emt 0:00:41]} Ra8 {[%emt 0:00:29]} 66. Rc7+ {[%emt 0:00:36]} Kd3 {[%emt 0:00:38]} 67. Rd7+ {[%emt 0:00:14]} Kc4 {[%emt 0:00:14]} 68. Rc7+ {[%emt 0:00:19]} Kd3 {[%emt 0:00:05]} 69. Rd7+ {[%emt 0:00:09]} Kc4 {[%emt 0:00:12]} 70. Rc7+ {[%emt 0:00:08]} 1/2-1/2